bitfinex/quotes_ETHUSD_20251124
["timestamp","ask_amount","ask_price","bid_price","bid_amount"]
[1763945894817,0.51442591,2794.8,2794.0,0.1815]
[1763945895342,0.51442591,2794.8,2793.5,0.4606]
[1763945895635,0.90699264,2794.5,2793.5,0.4606]
[1763945895795,2.005318,2794.3,2793.2,0.4606]
[1763945895979,0.90699264,2794.3,2793.0,0.1943]
[1763945896184,0.4697,2794.2,2793.0,0.1943]
[1763945896407,0.4697,2794.2,2793.0,0.6549]
[1763945896714,0.4697,2794.2,2793.1,0.03580251]
[1763945896715,1.23055742,2794.2,2793.1,0.03580251]
[1763945896915,0.4697,2794.5,2793.1,0.55225842]
[1763945898194,5.42057418,2794.9,2793.1,0.55225842]
[1763945898195,0.4697,2794.8,2793.4,0.09165842]
[1763945898394,0.1945,2794.9,2793.5,0.4606]
[1763945898600,0.6642,2794.9,2793.5,0.4606]
[1763945898802,0.90699264,2794.7,2793.5,0.4606]
[1763945899009,0.64088162,2794.7,2793.5,0.4606]
[1763945899198,0.4697,2794.7,2793.6,0.09165842]
[1763945899392,0.4697,2794.7,2793.7,0.4606]
[1763945899733,0.04472912,2794.6,2793.4,0.09165842]
[1763945899923,0.04472912,2794.6,2793.6,0.4606]
[1763945900121,0.4697,2794.6,2793.6,0.4606]
[1763945900296,0.4697,2794.8,2793.6,0.4606]
[1763945900705,0.4488865,2794.7,2793.6,0.4606]
[1763945900912,1.21955888,2794.7,2793.6,0.4606]
[1763945901130,0.4697,2794.6,2793.6,0.4606]
[1763945901336,2.3415,2794.9,2793.6,0.4606]
[1763945901337,0.1945,2794.9,2793.6,0.4606]
[1763945901554,1.10740183,2795.0,2794.5,0.4859]
[1763945901851,0.77284511,2795.0,2794.5,0.4859]
[1763945902050,0.6642,2794.9,2794.1,0.1818]
[1763945902354,0.04472591,2794.8,2793.5,0.09165842]
[1763945902549,0.51442591,2794.8,2793.5,0.09165842]
[1763945902708,0.51442591,2794.8,2793.6,0.4606]
[1763945902914,0.4697,2794.8,2793.6,0.4606]
[1763945903113,0.1945,2794.9,2793.8,0.09165842]
[1763945903330,0.1945,2794.9,2793.9,0.4606]
[1763945903640,0.6642,2794.9,2793.9,0.4606]
[1763945904213,0.6642,2794.9,2793.9,0.55225842]
[1763945905253,0.77294894,2795.0,2794.0,0.09165842]
[1763945905458,0.77294894,2795.0,2794.1,0.6424]
[1763945905459,0.002,2795.0,2794.1,0.6424]
[1763945905755,0.1945,2794.9,2794.1,0.73405842]
[1763945906120,0.1945,2794.9,2794.2,0.4606]
[1763945906720,0.04672271,2795.0,2794.2,0.4606]
[1763945907228,0.002,2795.0,2794.2,0.4606]
[1763945907416,0.04672271,2795.0,2794.2,0.4606]
[1763945907664,0.6642,2794.9,2794.1,0.1818]
[1763945908258,0.002,2795.0,2794.2,0.4606]
[1763945909099,0.1945,2794.9,2794.1,0.1818]
[1763945909460,0.6642,2794.9,2794.1,0.1818]
[1763945909659,0.04472591,2794.8,2793.5,0.4606]
[1763945910000,0.4697,2794.8,2793.5,0.4606]
[1763945910494,0.4697,2794.8,2793.7,0.09165842]
[1763945910992,0.4697,2794.8,2793.8,0.4606]
[1763945911194,0.1945,2794.9,2794.1,0.09165842]
[1763945911397,0.4697,2794.8,2793.7,0.4606]
[1763945911604,0.04472751,2794.7,2793.7,0.4606]
[1763945911957,0.51442751,2794.7,2793.7,0.4606]
[1763945913805,0.6618,2793.8,2793.0,0.1943]
[1763945914118,0.4697,2793.7,2793.0,0.1943]
[1763945914262,1.24166529,2793.7,2793.0,0.001]
[1763945914463,0.4673,2793.1,2793.0,0.001]
[1763945914864,0.937,2793.1,2793.0,0.001]
[1763945915360,0.4673,2793.1,2793.0,0.001]
[1763945915566,0.937,2793.1,2793.0,0.001]
[1763945916215,0.4697,2793.6,2793.0,0.001]
[1763945917003,1.44878837,2793.8,2793.1,0.1831]
[1763945917164,1.10651132,2793.7,2793.1,0.1831]
[1763945917360,1.10651132,2793.7,2793.0,0.001]
[1763945917361,0.77168837,2793.7,2793.0,0.001]
[1763945917601,0.4826,2793.6,2793.0,0.001]
[1763945918775,0.1945,2793.8,2793.1,0.1831]
[1763945918975,0.4826,2793.7,2793.0,0.001]
[1763945919302,0.002,2793.6,2793.0,0.001]
[1763945922175,0.4846,2793.6,2793.0,0.001]
[1763945923477,0.002,2793.6,2793.1,0.1917]
[1763945923983,0.002,2793.6,2793.1,0.6682]
[1763945924184,0.5007,2793.6,2793.0,0.001]
[1763945926611,0.002,2793.6,2793.0,0.4775]
[1763945926809,0.002,2793.6,2793.5,0.4673]
[1763945927826,0.4619,2793.6,2793.0,0.001]
[1763945928030,0.4619,2793.6,2793.0,0.4775]
[1763945928201,0.4987,2793.5,2793.0,0.001]
[1763945928401,0.54344673,2793.5,2793.0,0.001]
[1763945929136,0.4599,2793.1,2793.0,0.001]
[1763945929515,0.9586,2793.1,2793.0,0.001]
[1763945931938,0.4599,2793.1,2793.0,0.001]
[1763945933003,0.4987,2793.4,2793.0,0.001]
[1763945933004,0.002,2793.6,2793.0,0.9448]
[1763945933217,0.002,2793.6,2793.1,0.1917]
[1763945934737,0.002,2793.6,2793.1,0.6682]
[1763945935110,0.002,2793.6,2793.2,0.4765]
[1763945936242,0.002,2793.6,2793.5,0.4673]
[1763945936604,0.002,2793.6,2793.2,0.4765]
[1763945936807,0.002,2793.6,2793.1,0.1917]
[1763945937006,0.002,2793.6,2793.1,0.6682]
[1763945937243,0.5007,2793.6,2793.1,0.1917]
[1763945937425,0.04474673,2793.5,2793.1,0.1917]
[1763945938757,0.54344673,2793.5,2793.0,0.001]
[1763945939105,0.4987,2793.5,2793.0,0.001]
[1763945939514,0.4599,2793.1,2793.0,0.001]
[1763945939808,0.9586,2793.1,2793.0,0.001]
[1763945940015,1.00335314,2793.1,2793.0,0.001]
[1763945940207,0.9586,2793.1,2793.0,0.001]
[1763945941229,28.39978843,2793.1,2793.0,0.001]
[1763945941430,14.984877,2792.8,2792.7,0.001]
[1763945941643,16.52085544,2792.8,2792.7,0.001]
[1763945941844,15.74461744,2792.8,2792.7,0.001]
[1763945942147,14.77919961,2792.8,2792.7,0.001]
[1763945942314,13.91464461,2792.8,2792.7,0.001]
[1763945942723,5.89106985,2792.8,2792.7,0.001]
[1763945942929,13.82338485,2792.8,2792.7,0.001]
[1763945943239,5.89054741,2792.8,2792.7,0.001]
[1763945943440,2.01371161,2792.8,2792.7,0.6506]
[1763945943641,0.3807076,2793.5,2792.7,0.6506]
[1763945943642,0.002,2793.6,2792.9,0.4673]
[1763945943953,0.002,2793.6,2793.5,0.659]
[1763945944160,0.002,2793.6,2793.5,1.1355]
[1763945944361,0.002,2793.6,2793.5,0.659]
[1763945945566,0.002,2793.6,2793.1,0.4765]
[1763945950079,0.002,2793.6,2793.5,0.4876]
[1763945950436,0.002,2793.6,2793.1,0.4765]
[1763945951056,0.002,2793.6,2793.5,0.4876]
[1763945951243,0.002,2793.6,2793.5,0.9649]
[1763945952546,0.002,2793.6,2793.0,0.4773]
[1763945953152,0.002,2793.6,2793.5,0.4876]
[1763945955847,0.9937,2793.6,2793.0,0.001]
[1763945956048,0.04474673,2793.5,2793.0,0.001]
[1763945956382,0.54284673,2793.5,2793.0,0.001]
[1763945956580,0.4936,2793.1,2793.0,0.001]
[1763945956782,0.9917,2793.1,2793.0,0.001]
[1763945956947,0.5001,2793.6,2793.0,0.001]
[1763945957148,0.002,2793.6,2793.0,0.001]
[1763945957353,0.002,2793.6,2793.1,0.1823]
[1763945958664,0.5001,2793.6,2793.1,0.1823]
[1763945959192,0.002,2793.6,2793.1,0.1823]
[1763945959394,0.002,2793.6,2793.5,0.4876]
[1763945960407,0.002,2793.6,2793.2,0.4773]
[1763945960775,0.002,2793.6,2793.5,0.4876]
[1763945961175,0.002,2793.6,2793.5,0.9649]
[1763945961374,0.002,2793.6,2793.5,1.15566926]
[1763945963914,0.002,2793.6,2793.5,0.67836926]
[1763945964221,0.002,2793.6,2793.1,0.1823]
[1763945964515,0.002,2793.6,2793.2,0.4773]
[1763945965000,0.002,2793.6,2793.5,0.57925842]
[1763945965463,0.002,2793.6,2793.5,1.05655842]
[1763945966602,0.002,2793.6,2793.5,0.4876]
[1763945967685,0.002,2793.6,2793.5,0.9649]
[1763945969204,0.002,2793.6,2793.5,0.4876]
[1763945970904,0.9937,2793.6,2793.0,0.001]
[1763945971090,0.089,2793.5,2793.0,0.001]
[1763945971501,0.4895,2793.1,2793.0,0.001]
[1763945972714,0.4981,2793.4,2793.0,0.001]
[1763945974287,0.4936,2793.1,2793.0,0.001]
[1763945974987,0.4981,2793.4,2793.0,0.001]
[1763945975224,0.002,2793.6,2793.0,0.6709]
[1763945975388,0.4936,2793.1,2793.0,0.001]
[1763945975736,0.5001,2793.6,2793.0,0.001]
[1763945976139,0.4936,2793.1,2793.0,0.001]
[1763945976502,0.9917,2793.1,2793.0,0.001]
[1763945976912,0.4936,2793.1,2793.0,0.001]
[1763945977310,0.9657,2793.1,2793.0,0.001]
[1763945977897,0.4721,2793.5,2793.0,0.001]
[1763945978509,0.002,2793.6,2793.0,0.001]
[1763945978742,0.002,2793.6,2793.1,0.1823]
[1763945979200,0.002,2793.6,2793.1,0.6775]
[1763945980036,0.002,2793.6,2793.1,0.1823]
[1763945980249,0.4741,2793.6,2793.0,0.001]
[1763945980601,0.002,2793.6,2793.1,0.1823]
[1763945981314,0.002,2793.6,2793.1,0.6775]
[1763945982514,0.4721,2793.5,2793.0,0.001]
[1763945982832,0.002,2793.6,2793.0,0.001]
[1763945983442,0.002,2793.6,2793.0,0.4757]
[1763945984011,0.002,2793.6,2793.1,0.09165842]
[1763945984541,0.002,2793.6,2793.1,0.4747]
[1763945984728,0.002,2793.6,2793.0,0.001]
[1763945984934,0.002,2793.6,2793.1,0.4747]
[1763945985429,0.4684,2793.6,2793.0,0.001]
[1763945985927,0.04474673,2793.5,2793.0,0.001]
[1763945986131,0.4664,2793.4,2793.0,0.001]
[1763945986506,0.002,2793.6,2793.0,0.001]
[1763945986714,0.002,2793.6,2793.1,0.1823]
[1763945987007,0.002,2793.6,2793.5,0.4985]
[1763945987234,0.002,2793.6,2793.5,0.9732]
[1763945987431,0.002,2793.6,2793.1,0.657]
[1763945987951,0.002,2793.6,2793.5,0.4985]
[1763945988321,0.002,2793.6,2793.5,0.9732]
[1763945989650,0.002,2793.6,2793.5,1.06485842]
[1763945989849,0.002,2793.6,2793.5,0.4985]
[1763945990049,0.002,2793.6,2793.5,0.9732]
[1763945991930,0.002,2793.6,2793.5,0.4985]
[1763945992143,0.002,2793.6,2793.1,0.657]
[1763945992457,0.002,2793.6,2793.2,0.56635842]
[1763945993859,0.002,2793.6,2793.5,0.4985]
[1763945994031,0.002,2793.6,2793.2,0.56635842]
[1763945996458,0.002,2793.6,2793.1,0.1823]
[1763945996656,0.4684,2793.6,2793.1,0.1823]
[1763945996828,0.002,2793.6,2793.2,0.4747]
[1763945998534,0.002,2793.6,2793.5,0.4985]
[1763945999065,0.002,2793.6,2793.5,0.9732]
[1763945999857,0.4677,2793.6,2793.0,0.001]
[1763946000071,0.9341,2793.6,2793.0,0.001]
[1763946000534,0.1546,2793.1,2793.0,0.001]
[1763946000865,0.4664,2793.5,2793.0,0.001]
[1763946001373,0.4657,2793.1,2793.0,0.001]
[1763946001779,0.9321,2793.1,2793.0,0.001]
[1763946003377,1.43419995,2793.1,2793.0,0.001]
[1763946003581,5.70518496,2793.1,2792.7,0.001]
[1763946003742,5.70518496,2793.1,2792.4,0.001]
[1763946003743,0.90699264,2792.7,2792.4,0.001]
[1763946004073,0.4553,2792.5,2792.4,0.001]
[1763946004447,0.9217,2792.5,2792.4,0.001]
[1763946004651,1.10456926,2792.5,2792.4,0.001]
[1763946007294,0.90699264,2792.1,2790.6,0.1831]
[1763946007445,0.90699264,2791.6,2790.6,0.1831]
[1763946007645,0.4731,2791.8,2790.7,0.4695]
[1763946007980,0.6639,2791.8,2790.7,0.56115842]
[1763946008167,0.6639,2791.8,2790.7,0.5053333]
[1763946008475,0.6639,2791.8,2790.9,0.09165842]
[1763946008684,0.6639,2791.8,2791.0,0.4695]
[1763946008853,0.6639,2791.8,2791.0,0.56115842]
[1763946009049,0.1908,2791.8,2791.1,0.1828]
[1763946009276,0.4731,2791.8,2791.1,0.1828]
[1763946009473,0.4731,2791.8,2790.6,0.1831]
[1763946009474,0.4731,2791.8,2790.8,0.09165842]
[1763946009677,0.4731,2791.8,2790.7,0.4695]
[1763946009900,0.1908,2792.0,2790.7,0.56115842]
[1763946010189,0.1908,2792.0,2791.1,0.09165842]
[1763946010606,0.1908,2792.2,2791.2,0.1828]
[1763946010912,0.1908,2792.2,2791.1,0.09165842]
[1763946011193,0.4543,2791.2,2790.6,0.1831]
[1763946011346,0.4543,2791.2,2790.4,0.1831]
[1763946011781,4.08889951,2791.7,2790.4,0.1831]
[1763946011782,0.4731,2791.7,2790.5,0.03583587]
[1763946011987,0.4731,2791.6,2790.4,0.1831]
[1763946012493,0.4731,2791.6,2790.5,0.4695]
[1763946012850,0.4543,2790.6,2789.9,0.1823]
[1763946013057,0.4731,2791.6,2789.9,0.6518]
[1763946013058,1.38009264,2791.6,2789.9,0.6518]
[1763946013259,0.1908,2790.9,2790.0,0.4695]
[1763946013465,0.1908,2790.9,2790.0,0.56115842]
[1763946013674,0.6639,2790.9,2790.1,0.1831]
[1763946014086,0.4731,2790.8,2790.1,0.1831]
[1763946015169,0.4731,2790.8,2789.9,0.1823]
[1763946015361,0.90699264,2790.7,2789.9,0.1823]
[1763946015889,0.4731,2790.6,2789.9,0.1823]
[1763946016087,0.6639,2790.9,2789.9,0.6518]
[1763946016585,0.4731,2790.8,2789.9,0.1823]
[1763946016753,0.4731,2790.8,2789.8,0.1823]
[1763946016959,0.4731,2790.8,2789.8,0.6518]
[1763946017455,0.4731,2790.8,2789.8,0.1823]
[1763946017785,0.4731,2790.8,2789.6,0.1823]
[1763946018165,0.4731,2790.8,2788.9,0.1917]
[1763946018166,0.4543,2789.7,2789.3,0.1823]
[1763946018887,0.9274,2789.7,2789.0,0.4695]
[1763946019095,0.9274,2789.7,2788.9,0.1917]
[1763946019658,0.6639,2790.0,2789.0,0.4695]
[1763946019857,0.1908,2790.5,2789.0,1.41234778]
[1763946020197,0.1908,2790.5,2789.0,0.56115842]
[1763946020396,0.4731,2790.4,2789.1,0.56115842]
[1763946020706,0.6639,2790.9,2789.8,0.09165842]
[1763946020870,0.6639,2790.9,2789.1,0.4695]
[1763946021192,0.6639,2790.9,2789.2,0.4695]
[1763946021193,0.51787237,2790.8,2789.2,0.4695]
[1763946021492,0.4543,2789.2,2787.0,3.7711126]
[1763946021733,0.4543,2789.2,2788.3,0.09165842]
[1763946021897,0.90699264,2789.8,2788.4,0.4695]
[1763946021898,0.4731,2789.7,2788.4,0.4695]
[1763946022200,0.4731,2789.7,2788.6,0.09165842]
[1763946022581,0.4731,2789.7,2788.6,0.56115842]
[1763946022757,0.4731,2789.7,2788.6,0.09165842]
[1763946022958,0.4731,2789.7,2788.3,0.56115842]
[1763946023163,0.4731,2789.7,2788.3,0.4695]
[1763946023493,0.4731,2789.7,2788.3,0.4705]
[1763946023798,0.4731,2789.9,2788.4,0.03586286]
[1763946024012,0.4731,2789.9,2788.9,0.09165842]
[1763946024218,0.4731,2789.8,2788.3,0.4705]
[1763946024801,0.4731,2789.8,2788.3,0.56215842]
[1763946025665,1.02571237,2789.8,2788.6,0.09165842]
[1763946025860,0.90699264,2790.4,2788.3,1.41335678]
[1763946026174,0.4731,2789.8,2788.4,1.37649264]
[1763946026371,0.4731,2790.3,2788.9,0.09165842]
[1763946026671,0.4731,2790.3,2788.5,0.03586157]
[1763946026672,0.4731,2790.3,2789.1,0.09165842]
[1763946026871,0.04477237,2790.2,2789.0,0.09165842]
[1763946027075,0.4731,2790.3,2789.1,0.74845842]
[1763946027793,0.4731,2790.3,2789.2,0.4695]
[1763946028180,0.04477237,2790.2,2789.2,0.4695]
[1763946028366,0.4731,2790.1,2789.2,0.4695]
[1763946028761,0.4731,2790.7,2790.0,0.4932]
[1763946029414,0.1908,2790.9,2790.1,0.1873]
[1763946029622,0.4543,2790.2,2789.4,0.4695]
[1763946029914,0.5949,2790.1,2789.1,0.1873]
[1763946030218,0.5949,2790.1,2789.2,0.4695]
[1763946030617,0.4731,2790.0,2789.1,0.1873]
[1763946031196,0.4731,2790.2,2789.1,0.6568]
[1763946031411,0.04477237,2790.1,2789.1,0.1873]
[1763946031719,0.4731,2790.2,2788.7,0.4695]
[1763946031936,0.4731,2790.1,2788.7,0.4695]
[1763946032097,0.35340926,2790.0,2788.7,0.4695]
[1763946032483,0.4731,2789.9,2788.7,0.4695]
[1763946033072,0.04477237,2789.8,2788.5,0.09165842]
[1763946033202,0.4731,2789.9,2788.5,0.09165842]
[1763946033399,0.04477237,2789.8,2788.5,0.4695]
[1763946033625,1.38009264,2789.9,2788.5,0.4695]
[1763946033792,1.2764533,2789.8,2788.5,0.4695]
[1763946034332,0.4731,2789.7,2788.3,0.4705]
[1763946034487,0.4731,2789.7,2788.4,0.09165842]
[1763946034690,0.4731,2789.7,2788.6,0.09165842]
[1763946035204,0.4731,2789.7,2788.6,0.56115842]
[1763946035400,0.4731,2790.0,2788.9,0.09165842]
[1763946035710,0.4731,2790.0,2788.6,0.4695]
[1763946035915,0.37845781,2789.9,2788.6,0.4695]
[1763946036315,0.4731,2789.8,2788.6,0.4695]
[1763946036721,0.4924,2790.7,2789.7,0.6549]
[1763946037026,0.1908,2790.9,2789.9,0.09165842]
[1763946037235,0.1908,2790.9,2789.8,0.4736]
[1763946037236,0.53717237,2790.8,2789.8,0.4736]
[1763946037545,0.3339527,2790.7,2789.4,0.1813]
[1763946037831,0.3339527,2790.7,2789.5,0.09165842]
[1763946038132,0.76971705,2790.7,2789.8,0.09165842]
[1763946038313,0.4924,2790.7,2789.5,0.4907]
[1763946038915,0.76971705,2790.8,2789.7,0.09165842]
[1763946039088,0.76971705,2790.8,2789.7,3.67623924]
[1763946039294,0.76971705,2791.0,2790.4,0.09165842]
[1763946039494,0.56253414,2791.1,2789.8,0.85832392]
[1763946039744,0.56253414,2791.1,2790.2,0.09165842]
[1763946039893,0.77003954,2791.2,2790.4,0.09165842]
[1763946040092,0.1908,2792.0,2791.1,0.6549]
[1763946040093,0.6832,2792.0,2791.1,0.6549]
[1763946040293,0.77023013,2791.9,2791.1,0.6549]
[1763946040523,0.77023013,2791.9,2790.0,0.1813]
[1763946040524,0.04477237,2791.8,2790.6,0.4907]
[1763946040752,0.77023013,2791.8,2790.7,0.09165842]
[1763946040966,1.26263013,2791.9,2790.7,0.09165842]
[1763946041165,1.26263013,2791.9,2790.8,0.4907]
[1763946041367,0.4924,2791.8,2790.8,0.4907]
[1763946041990,0.4924,2791.8,2790.4,0.4907]
[1763946041991,1.10451435,2791.7,2790.4,0.4907]
[1763946042261,1.10451435,2791.7,2790.0,0.1813]
[1763946042262,0.77023013,2791.6,2790.2,0.09165842]
[1763946042466,1.26263013,2791.7,2790.5,0.09165842]
[1763946042673,0.77023013,2791.6,2790.5,0.09165842]
[1763946042872,0.77023013,2791.5,2790.0,0.1813]
[1763946043038,1.26263013,2791.8,2790.2,0.4907]
[1763946043232,1.10450163,2791.7,2790.2,0.4907]
[1763946043431,0.77023013,2791.6,2790.2,0.4907]
[1763946043668,1.26343013,2791.8,2790.2,0.4907]
[1763946043865,2.22850631,2791.7,2790.0,0.1813]
[1763946044164,1.10447262,2791.6,2790.0,0.6593]
[1763946044407,1.14924499,2791.5,2790.0,0.6593]
[1763946044586,0.77023013,2791.4,2790.0,0.6593]
[1763946044780,0.77023013,2791.4,2790.0,0.1813]
[1763946044781,0.04477237,2791.3,2790.0,0.1813]
[1763946044986,0.77023013,2791.2,2790.0,0.1813]
[1763946045170,0.77023013,2791.2,2790.0,0.6593]
[1763946045371,0.4932,2791.1,2790.0,0.6593]
[1763946045583,0.4932,2791.3,2790.0,0.1813]
[1763946045784,0.4932,2791.3,2790.1,0.513841]
[1763946045984,0.4932,2791.3,2790.4,0.09165842]
[1763946046398,0.77023013,2791.5,2790.7,0.09165842]
[1763946046711,0.04477237,2791.4,2790.2,0.478]
[1763946046897,0.77023013,2791.5,2790.0,0.1813]
[1763946047073,0.90699264,2791.2,2789.8,0.001]
[1763946047279,1.30878469,2791.1,2789.8,0.001]
[1763946047493,0.77023013,2791.0,2789.8,0.001]
[1763946047691,1.26343013,2791.2,2789.8,0.001]
[1763946047889,0.1961,2790.9,2789.8,0.001]
[1763946048211,0.1961,2790.9,2789.9,0.56965842]
[1763946048515,0.1961,2790.9,2790.1,0.09165842]
[1763946048713,0.53797237,2790.8,2789.8,0.001]
[1763946048890,0.4932,2790.8,2789.8,0.001]
[1763946050336,0.1961,2790.9,2789.9,0.56965842]
[1763946050480,0.4932,2791.6,2790.7,0.6695]
[1763946050818,1.2631311,2791.6,2790.8,0.4781]
[1763946050990,0.7699311,2791.5,2790.8,1.04775842]
[1763946051314,0.1908,2792.0,2790.8,0.56975842]
[1763946051614,0.4932,2791.9,2790.8,1.04775842]
[1763946052006,0.4932,2791.9,2790.9,0.478]
[1763946053241,0.4932,2791.9,2790.7,0.28305842]
[1763946053432,0.4932,2791.9,2790.7,0.76105842]
[1763946054427,0.4932,2791.9,2790.7,0.1914]
[1763946054627,0.4932,2791.9,2790.8,0.478]
[1763946055739,0.4932,2791.9,2790.7,0.1914]
[1763946055740,0.04477237,2791.8,2790.7,0.1914]
[1763946055927,0.4932,2791.9,2790.7,0.6694]
[1763946056131,0.4932,2791.9,2790.7,0.76105842]
[1763946056527,0.4932,2791.9,2790.8,0.478]
[1763946056732,0.4932,2791.9,2790.8,0.56965842]
[1763946057128,0.4932,2791.9,2790.8,0.478]
[1763946057344,0.4932,2791.9,2790.9,0.09165842]
[1763946057644,0.4932,2791.9,2790.1,0.1914]
[1763946057645,3.680761,2791.5,2790.1,0.1914]
[1763946057815,0.0996,2790.8,2790.1,0.1914]
[1763946058015,0.1961,2790.9,2790.2,0.03583972]
[1763946058243,0.90699264,2791.6,2790.1,0.76105842]
[1763946058244,0.4932,2791.3,2790.1,0.76105842]
[1763946058413,0.4932,2791.3,2790.2,0.478]
[1763946058607,0.4932,2791.3,2790.1,0.1914]
[1763946058819,0.04477237,2791.2,2790.1,0.1914]
[1763946059049,0.4932,2791.3,2790.1,0.6694]
[1763946059208,0.4932,2791.2,2790.1,0.6694]
[1763946059410,0.4932,2791.2,2790.1,0.1914]
[1763946060042,0.4932,2791.2,2790.3,0.09165842]
[1763946060043,0.45737504,2791.2,2790.3,0.09165842]
[1763946060248,0.45737504,2791.2,2790.4,0.478]
[1763946060450,0.45737504,2791.2,2790.4,0.03583715]
[1763946060651,0.6475,2790.5,2789.8,0.001]
[1763946061036,0.4514,2789.9,2789.8,0.001]
[1763946061749,0.1961,2790.5,2789.8,0.4791]
[1763946061947,0.1961,2790.5,2789.8,0.9571]
[1763946062121,1.1046449,2791.0,2790.0,0.001]
[1763946062122,0.1961,2790.8,2790.0,0.001]
[1763946062330,0.1961,2790.8,2790.0,0.09265842]
[1763946062649,0.4932,2790.7,2790.0,0.001]
[1763946063014,0.4514,2790.1,2790.0,0.001]
[1763946063915,0.9446,2790.1,2790.0,0.001]
[1763946068188,0.4932,2790.5,2790.0,0.001]
[1763946068360,0.4932,2790.4,2790.0,0.001]
[1763946068973,0.6893,2790.8,2790.0,0.001]
[1763946069156,0.4932,2790.7,2790.0,0.001]
[1763946069361,0.4932,2790.7,2790.1,0.1904]
[1763946069735,0.1961,2790.8,2790.1,0.1904]
[1763946070340,0.1961,2790.8,2790.0,0.001]
[1763946070536,0.479,2790.1,2790.0,0.001]
[1763946070736,0.90699264,2790.6,2790.0,0.001]
[1763946070937,0.55462237,2790.5,2790.0,0.001]
[1763946071165,0.479,2790.1,2790.0,0.001]
[1763946071576,0.9722,2790.1,2790.0,0.001]
[1763946073584,1.87919264,2790.1,2790.0,0.001]
[1763946074186,0.479,2790.1,2790.0,0.001]
[1763946074354,0.55462237,2790.5,2790.0,0.001]
[1763946074570,0.479,2790.1,2790.0,0.001]
[1763946075068,0.1954815,2790.4,2790.0,0.4707]
[1763946075271,0.6893,2790.8,2790.0,0.001]
[1763946075272,0.77103559,2790.7,2790.0,0.001]
[1763946075467,1.26423559,2790.7,2790.0,0.001]
[1763946075669,0.4932,2790.7,2790.0,0.001]
[1763946075870,0.77102482,2791.0,2790.1,0.1904]
[1763946076069,4.14603108,2791.7,2790.1,0.1904]
[1763946076070,0.4932,2791.5,2790.1,0.1904]
[1763946076299,0.33460144,2791.4,2790.2,0.4734]
[1763946076500,1.10561109,2791.4,2790.2,0.4734]
[1763946076693,0.33460144,2791.3,2790.2,0.4734]
[1763946077000,4.19080345,2791.2,2790.1,0.1904]
[1763946077304,1.74612734,2791.1,2790.1,0.1904]
[1763946077602,2.23932734,2791.1,2790.1,0.1904]
[1763946077784,0.4932,2791.0,2790.1,0.1904]
[1763946077979,1.70135497,2791.1,2790.2,0.4734]
[1763946078301,0.4932,2791.3,2790.2,0.4734]
[1763946078508,0.77094417,2791.4,2790.2,0.4734]
[1763946078692,0.1908,2792.0,2790.2,0.4734]
[1763946078892,0.1908,2792.0,2791.4,0.6601]
[1763946079510,0.684,2792.0,2791.2,0.1904]
[1763946079688,0.77048619,2792.1,2791.9,0.4697]
[1763946079875,0.56422734,2792.4,2792.0,0.28205842]
[1763946079876,0.77048619,2792.3,2792.0,0.28205842]
[1763946080071,0.002,2792.4,2792.3,0.75175842]
[1763946080614,0.002,2792.4,2792.3,1.22515842]
[1763946081884,0.002,2792.4,2792.3,1.1335]
[1763946082191,0.002,2792.4,2792.3,0.6601]
[1763946082390,0.002,2792.4,2792.0,0.6638]
[1763946083108,0.002,2792.4,2792.0,0.1904]
[1763946083414,0.002,2792.4,2792.1,0.4734]
[1763946083716,0.002,2792.4,2792.0,0.6638]
[1763946084013,0.002,2792.4,2792.1,0.4734]
[1763946084214,0.002,2792.4,2792.0,0.1904]
[1763946084514,0.4952,2792.4,2791.4,0.4734]
[1763946085804,0.002,2792.4,2791.4,0.4734]
[1763946086103,0.002,2792.4,2792.3,0.6601]
[1763946086420,0.002,2792.4,2791.4,0.4734]
[1763946086580,0.002,2792.4,2791.7,0.09165842]
[1763946086972,0.002,2792.4,2791.7,0.56505842]
[1763946087411,0.002,2792.4,2792.3,0.6601]
[1763946087908,0.002,2792.4,2792.0,0.4734]
[1763946088106,0.002,2792.4,2792.1,0.1904]
[1763946088972,0.002,2792.4,2792.3,0.4697]
[1763946089485,0.002,2792.4,2792.1,0.1904]
[1763946090503,0.002,2792.4,2792.3,0.4697]
[1763946090879,0.002,2792.4,2791.2,0.1904]
[1763946090880,0.9742,2792.4,2791.2,0.6638]
[1763946091215,0.25051926,2792.3,2791.2,0.6638]
[1763946091378,0.04476756,2792.2,2791.2,0.6638]
[1763946091580,0.74371926,2792.3,2791.2,0.1904]
[1763946091776,0.002,2792.4,2791.3,0.5092256]
[1763946092112,0.002,2792.4,2791.5,0.09165842]
[1763946092489,0.002,2792.4,2791.6,0.4734]
[1763946092890,0.002,2792.4,2792.3,0.6601]
[1763946093307,0.002,2792.4,2792.3,1.1335]
[1763946093912,0.002,2792.4,2792.3,1.22515842]
[1763946094298,0.002,2792.4,2791.2,4.00303517]
[1763946094299,0.002,2792.4,2792.1,0.1904]
[1763946094815,0.002,2792.4,2792.1,0.6638]
[1763946095994,0.002,2792.4,2792.3,0.4697]
[1763946096419,0.002,2792.4,2792.3,0.9431]
[1763946097099,0.002,2792.4,2792.3,1.07057119]
[1763946097492,0.002,2792.4,2792.3,1.03475842]
[1763946097921,0.002,2792.4,2792.3,1.07057119]
[1763946098123,0.002,2792.4,2792.3,1.03475842]
[1763946098888,0.002,2792.4,2792.3,1.24797353]